{"text_format":"1","workbook":"xlsx","n_sheets":3,"sheets":["List1","List2","List3"],"not_rendered":{"charts":0,"images":0,"macros":0,"external_links":1,"defined_names":0,"comments":0,"pivot_tables":0},"unopened":[],"bounds":{"document_bytes":16777216,"sheet_cells":100000,"rows_first":2000,"rows_last":500,"rows_between":2000,"halvings":0,"cell_chars":16384,"cell_head_chars":4096},"cells_cut":0,"cells_raw":0,"read":"whole","date_system":"1900"}

{"sheet":"List1","index":0,"n_rows":69,"n_cols":10,"rows_kept":69,"cut":false,"hidden":false,"merged":[]}
[]
[]
["Obec , IČ: Náklo, 00299251"]
[]
["Rozpočtové opatření č. 2 - červen 2021"]
[]
["V souladu s ustanovením § 16 zákona č. 250/2000 Sb., o rozpočtových pravidlech územních rozpočtů dojde k rozpočtovému"]
["opatření v případě změn rozpočtových prostředků na závazných ukazatelích."]
[]
["Rozpočtové opatření č. 2/2021 (předloženo Zastupitelstvu obce dne 28.06.2021) "]
[]
["PŘÍJMY"]
["PAR","POL","UZ","PARAGRAF","POLOŽKA","Rozpočtováno","Upravený ROZP","změna ROZP","ROZP po ZMĚNĚ","POZNÁMKA"]
[0,1211,null,null,"Daň z přidané hodnoty",10000000,9749997.5099999998,250002.49,{"$f":"H14+G14","v":10000000},"DPH"]
[0,4116,null,null,"Ostatní neinv.přijaté transfery ze st. rozpočtu",0,75000,10000,{"$f":"H15+G15","v":85000},"dotace Zapojení Obecní knihovny Náklo do regionálního koperačního systému Tritius"]
[null,null,null,"Celkem ZMĚNY v PŘÍJMECH",null,null,260002.49]
[]
[null,null,null,"Celkem PŘÍJMY",null,42824528.309999995,260002.49,43084530.799999997]
[]
["VÝDAJE:"]
["PAR","POL","UZ","PARAGRAF","POLOŽKA","ROZPOČTOVÁNO","Upravený ROZP","změna ROZP","ROZP po ZMĚNĚ","POZNÁMKA"]
[2212,6121,null,null,"Budovy, haly a stavby",0,26521,13000000,{"$f":"H22+G22","v":13026521},"Rekonstrukce silnice Mezice a chodníků, zapojení úvěru"]
[2212,null,null,"Silnice",null,479000,260176.6,13000000,13260176.6]
[2219,5171,null,null,"Opravy a udržování",13000000,13261226.4,-12954206.609999999,307019.79000000097,"Rekonstrukce silnice Mezice a chodníků"]
[2219,null,null,"Ostatní záležitosti pozemních komunikací",null,13050000,13326226.4,-12954206.609999999,372019.79000000097]
[3314,5137,null,null,"Drobný hmotný dlouhodobý majetek",0,0,14520,14520,"dotace Zapojení Obecní knihovny Náklo do regionálního koperačního systému Tritius"]
[3314,5171,null,null,"Opravy a udržování",10000,10000,-4520,5480,"dotace Zapojení Obecní knihovny Náklo do regionálního koperačního systému Tritius"]
[3314,null,null,"Činnosti knihovnické",null,48000,48000,10000,58000]
[3612,6121,null,null,"Budovy, haly a stavby",12000000,12049791.460000001,3000000,15049791.460000001,"úvěr Lhota nad Moravou Rekonstrukce bytového domu"]
[3612,null,null,"Bytové hospodářství",null,12111000,12172263.460000001,3000000,15172263.460000001]
[3639,6121,null,null,"Budovy, haly a stavby",1100000,1100000,-920000,180000,"splátka úvěru "]
[3639,null,null,"Komunální služby a územní rozvoj j.n.",null,5455344,5455344,-920000,4535344]
[6171,5171,null,null,"Opravy a udržování",1500000,1295790.8999999999,204209.1,1500000,"navýšení z příjmů do rozpočtu"]
[6171,5171,null,null,"Opravy a udržování",1500000,1500000,{"$f":"-I33+318585.2","v":-1181414.8},318585.19999999995,"splátka úvěru"]
[6171,null,null,"Činnost místní správy",null,6610000,6523240.9000000004,{"$f":"+H33+H34","v":-977205.70000000007},5546035.2000000002]
[null,null,null,"Celkem ZMĚNY ve VÝDAJÍCH",null,null,null,{"$f":"H34+H33+H31+H29+H27+H26+H24+H22","v":1158587.6900000013}]
[]
[null,null,null,"Celkem VÝDAJE",null,53210375.00999999,1158587.69,54368962.699999996]
[]
[null,null,null,"Celkem 5XXX",null,39347038.549999997,-13921412.309999999,25425626.239999998]
[null,null,null,"Celkem 6XXX",null,13863336.460000001,15080000,28943336.460000001]
[]
[]
["FINANCOVÁNÍ"]
["PAR","POL","UZ","PARAGRAF","POLOŽKA","ROZPOČTOVÁNO","Upravený ROZP","změna ROZP","ROZP po ZMĚNĚ","POZNÁMKA"]
[0,8115,null,null,"Změny stavů krátkodobých prostředků na bank.účtech",13307846.699999999,null,2898585.2,{"$f":"H46+F46","v":16206431.899999999},"zapojení přebytku z minulých let"]
[0,8123,null,null,"Dlouhodobé přijaté půjčené prostředky",0,0,13000000,13000000,"úvěr cesta Mezice, rekonstrukce bytového domu Lhota nad Moravou"]
[0,8124,null,null,"Uhrazené splátky dlouhodobých přijatých půjč.prost",-2922000,-2922000,-15000000,{"$f":"H48+G48","v":-17922000},"navýšení splátek úvěrů - splátka úvěru ZŠ Náklo"]
[null,null,null,"Celkem ZMĚNY ve FINANCOVÁNÍ:",null,null,null,{"$f":"H48+H47+H46","v":898585.20000000019}]
[]
[]
[null,null,null,"REKAPITULACE:"]
[]
[null,null,null,"Celkem PŘÍJMY",null,42824528.309999995,260002.49,43084530.799999997]
[null,null,null,"Celkem FINANCOVÁNÍ",null,10385846.699999996,898585.19999999925,11284431.899999995]
[null,null,null,"Celkem PŘÍJMY+FINANCOVÁNÍ",null,53210375.00999999,1158587.6899999992,54368962.699999988]
[]
[null,null,null,"Celkem VÝDAJE",null,53210375.00999999,1158587.6900000006,54368962.699999996]
[]
[]
["Důvodová zpráva k rozpočtovému opatření č. 2/2021"]
[]
["Přesun prostředků v rámci nezajištěného výdaje je Čerpán z rezervy obce."]
[]
["Správce rozpočtu : "]
[]
["Starosta obce : "]
[]
["Zastupitelstvo obce schvaluje dne 28. 06. 2021 rozpočtové opatření č. 2/2021 v předloženém rozsahu"]

{"sheet":"List2","index":1,"n_rows":24,"n_cols":1,"rows_kept":24,"cut":false,"hidden":false,"merged":[]}
["TEXTY PRO FORMULÁŘ ÚPRAVA ROZPOČTU - na začátek kopírují se řádky 3-13"]
["poznámka: Texty, které budou přenášeny z tohoto formuláře, musí být zapsány pouze ve sloupci A"]
[]
[]
["Obec , IČ: Náklo, 00299251"]
[]
["Rozpočtové změny roku 2019 -duben"]
[]
["V souladu s ustanovením § 16 zákona č. 250/2000 Sb., o rozpočtových pravidlech územních rozpočtů dojde k rozpočtovému"]
["opatření v případě změn rozpočtových prostředků na závazných ukazatelích."]
[]
["Rozpočtové opatření č. 1/2019 (předloženo na ZQ 6. 6. 2018) a doplněno při jednání na ZO"]
[]
["TEXTY PRO FORMULÁŘ ÚPRAVA ROZPOČTU - na začátek kopírují se řádky 16-32"]
[]
["Důvodová zpráva k rozpočtovému opatření č. 1/2019"]
[]
["Přesun prostředků v rámci nezajištěného výdaje je Čerpán z rezervy obce."]
[]
["Správce rozpočtu : "]
[]
["Starosta obce : "]
[]
["ZO schvaluje dne 6. 6. 2018 rozpočtové opatření č. 3/2018 v předloženém rozsahu Usnesením č. 1038/1860"]

{"sheet":"List3","index":2,"n_rows":0,"n_cols":0,"rows_kept":0,"cut":false,"hidden":false,"merged":[]}